bitfinex/quotes_SOLUSD_20250228
["timestamp","ask_amount","ask_price","bid_price","bid_amount"]
[1740703852184,20.79181043,137.02,137.01,1.95980779]
[1740703852387,20.79181043,137.02,137.01,0.29320779]
[1740703852585,18.79181043,137.02,137.01,0.29320779]
[1740703852979,22.44091043,137.02,137.01,0.29320779]
[1740703853177,20.79181043,137.02,137.01,7.79e-06]
[1740703853592,38.64964886,136.98,136.91,13.2549]
[1740703854200,38.64964886,136.98,136.91,15.2549]
[1740703854700,87.94,137.01,136.91,15.2549]
[1740703854904,6.74,137.01,136.93,2.0]
[1740703855198,0.14216157,137.02,136.93,2.0]
[1740703855199,81.2,137.03,136.94,2.0]
[1740703855874,18.64964886,137.02,136.94,22.5573]
[1740703856071,18.64964886,137.02,136.94,15.2549]
[1740703857196,6.74,137.05,136.97,15.4074197]
[1740703857394,81.2,137.06,136.98,2.0]
[1740703857810,18.64964886,137.05,136.98,2.0]
[1740703858577,18.64964886,137.05,136.98,9.2998]
[1740703860711,6.74,137.09,137.0,9.2992]
[1740703860891,0.14216157,137.07,137.0,19.9749]
[1740703861217,18.64964886,137.05,137.0,19.9749]
[1740703862103,20.0,137.06,137.0,21.9749]
[1740703862293,87.94,137.09,137.0,21.9749]
[1740703862606,18.64964886,137.08,137.0,158.4749]
[1740703862904,18.64964886,137.08,137.01,7.2987]
[1740703864110,87.92,137.12,137.03,2.0]
[1740703864284,87.92,137.12,137.03,151.7549]
[1740703864610,18.64964886,137.11,137.03,151.7549]
[1740703864983,6.2824,137.13,137.04,2.0]
[1740703865184,87.92,137.15,137.06,20.0]
[1740703865404,18.79181043,137.14,137.06,13.2549]
[1740703865606,18.79181043,137.14,137.06,14.859]
[1740703866195,18.64964886,137.14,137.07,7.2955]
[1740703867909,18.64964886,137.14,137.05,145.22]
[1740703868990,18.79181043,137.1,137.05,136.5]
[1740703869195,20.0,137.07,137.02,7.2982]
[1740703869406,20.0,137.07,137.02,89.3982]
[1740703871216,18.64964886,137.06,137.02,89.3982]
[1740703871428,18.64964886,137.06,137.02,7.2982]
[1740703872022,18.64964886,137.06,137.01,7.2987]
[1740703874209,0.14216157,137.05,137.01,7.2987]
[1740703876098,18.64964886,137.06,137.01,25.5455]
[1740703876295,20.0,137.07,137.01,107.6455]
[1740703876520,81.2,137.1,137.01,107.6455]
[1740703876731,81.2,137.1,137.01,244.1455]
[1740703876904,18.64964886,137.09,137.01,246.1455]
[1740703877101,18.64964886,137.09,137.01,284.6391]
[1740703878035,18.64964886,137.09,137.04,20.0]
[1740703878324,18.64964886,137.09,137.04,102.1]
[1740703879529,0.14216157,137.09,137.04,82.1]
[1740703880737,0.14216157,137.09,137.01,182.98887237]
[1740703880935,0.14216157,137.09,137.01,46.48887237]
[1740703881136,3.78936157,137.09,137.01,46.48887237]
[1740703881438,18.64964886,137.06,137.01,46.48887237]
[1740703881743,18.64964886,137.05,136.99,46.48887237]
[1740703882722,22.29794886,137.05,136.99,46.48887237]
[1740703882919,18.64964886,137.05,136.99,46.48887237]
[1740703884029,22.29794886,137.05,136.99,46.48887237]
[1740703887945,0.14216157,136.97,136.87,2.0]
[1740703888107,2.0,136.93,136.86,0.03]
[1740703888309,18.79181043,136.92,136.86,0.03]
[1740703888536,18.64964886,136.88,136.86,0.03]
[1740703889017,6.82,136.91,136.86,0.03]
[1740703889527,18.64964886,136.9,136.86,0.03]
[1740703889907,0.14216157,136.89,136.86,0.03]
[1740703890122,18.64964886,136.9,136.86,0.03]
[1740703890317,20.14216157,136.86,136.78,1.537]
[1740703890618,0.14216157,136.84,136.73,9.5137]
[1740703890819,18.79181043,136.84,136.73,167.44679207]
[1740703891018,18.64964886,136.84,136.74,2.0]
[1740703891229,18.64964886,136.84,136.75,2.0]
[1740703892447,18.64964886,136.84,136.74,2.0]
[1740703892817,18.64964886,136.84,136.75,2.0]
[1740703893515,6.9,136.85,136.78,19.0]
[1740703893716,10.09825089,136.87,136.78,14.11949207]
[1740703893717,81.2,136.86,136.78,14.11949207]
[1740703894831,81.2,136.86,136.78,21.43039207]
[1740703895850,81.2,136.86,136.78,23.43039207]
[1740703896032,81.2,136.86,136.79,2.0]
[1740703896557,88.1,136.9,136.82,20.0]
[1740703896732,6.9,136.9,136.82,174.16819207]
[1740703896925,6.9,136.9,136.82,172.16819207]
[1740703896926,18.64964886,136.9,136.82,172.16819207]
[1740703897351,6.5827,136.91,136.82,174.16819207]
[1740703897924,6.5827,136.91,136.83,7.3083]
[1740703898856,14.15603113,136.94,136.83,7.3083]
[1740703898857,94.2323,136.95,136.84,2.0]
[1740703899024,81.2,136.94,136.84,152.61949207]
[1740703899229,18.64964886,136.93,136.84,152.61949207]
[1740703899428,81.2,136.94,136.85,2.0]
[1740703899858,18.64964886,136.94,136.85,152.61949207]
[1740703900356,18.64964886,136.94,136.86,7.3067]
[1740703900563,18.64964886,136.94,136.86,14.2067]
[1740703901549,87.3323,136.95,136.86,17.7403952]
[1740703901728,81.2,136.95,136.89,20.0]
[1740703901928,88.1,136.98,136.89,34.11949207]
[1740703902123,81.2,136.98,136.89,172.61949207]
[1740703902333,6.1285,136.99,136.91,7.304]
[1740703903637,0.063,136.93,136.91,7.304]
[1740703903952,0.063,136.93,136.91,21.42349207]
[1740703908377,0.063,136.93,136.91,14.11949207]
[1740703910447,0.063,136.93,136.91,21.42339207]
[1740703912269,0.063,136.93,136.91,7.3039]
[1740703912977,0.063,136.93,136.88,7.3056]
[1740703913140,0.063,136.93,136.88,21.42509207]
[1740703913667,0.063,136.93,136.88,39.68919207]
[1740703916486,0.063,136.93,136.88,21.42509207]
[1740703918685,0.063,136.93,136.88,14.11949207]
[1740703920082,0.063,136.93,136.86,14.11949207]
[1740703920384,3.6523,136.9,136.84,152.26739207]
[1740703920585,3.6523,136.9,136.84,15.76739207]
[1740703920757,3.6523,136.9,136.84,14.11949207]
[1740703921290,18.64964886,136.89,136.84,14.11949207]
[1740703921669,18.64964886,136.89,136.82,157.92819207]
[1740703921874,18.64964886,136.89,136.82,150.61949207]
[1740703922493,3.6528,136.88,136.82,150.61949207]
[1740703922898,22.30224886,136.89,136.82,157.92829207]
[1740703923986,22.30224886,136.89,136.82,150.61949207]
[1740703924502,22.30224886,136.89,136.82,157.92819207]
[1740703925109,81.2,136.9,136.82,21.42819207]
[1740703925277,81.2,136.9,136.82,23.42819207]
[1740703925479,6.0421,136.92,136.85,20.0]
[1740703925788,9.6938,136.92,136.85,20.0]
[1740703926191,9.6938,136.92,136.86,7.3067]
[1740703926391,103.50448382,136.93,136.86,21.42619207]
[1740703926392,0.063,136.93,136.86,21.42619207]
[1740703926601,18.71264886,136.93,136.86,21.42619207]
[1740703926788,0.063,136.93,136.86,39.69299207]
[1740703927105,0.063,136.93,136.86,41.69299207]
[1740703927276,0.063,136.93,136.86,39.69299207]
[1740703927478,3.7145,136.93,136.86,21.42619207]
[1740703928401,18.64964886,136.91,136.84,164.72709207]
[1740703928791,18.64964886,136.91,136.84,157.92709207]
[1740703929409,22.30174886,136.91,136.84,157.92709207]
[1740703929623,18.64964886,136.91,136.84,157.92709207]
[1740703929828,88.083,136.92,136.84,157.92709207]
[1740703930027,88.083,136.92,136.84,178.19659207]
[1740703930629,91.7348,136.92,136.84,157.92709207]
[1740703931629,91.7348,136.92,136.84,176.19659207]
[1740703931934,0.063,136.92,136.87,20.0]
[1740703932437,3.7148,136.92,136.85,6.8]
[1740703932724,18.64964886,136.91,136.85,6.8]
[1740703932943,18.64964886,136.91,136.84,14.11949207]
[1740703933134,18.64964886,136.91,136.84,21.42709207]
[1740703934506,0.063,136.92,136.84,21.42709207]
[1740703934707,3.7148,136.92,136.84,21.42709207]
[1740703938114,3.6521,136.91,136.84,21.42709207]
[1740703940734,25.18701043,136.89,136.79,7.3104]
[1740703941030,18.79181043,136.85,136.78,14.14949207]
[1740703941233,18.64964886,136.83,136.78,0.03]
[1740703941932,22.30384886,136.83,136.78,0.03]
[1740703943735,18.64964886,136.81,136.78,0.03]
[1740703943922,18.64964886,136.79,136.78,0.03]
[1740703944113,99.99181043,136.79,136.78,0.03]
[1740703945224,22.44701043,136.79,136.78,0.03]
[1740703946535,26.15854283,136.79,136.78,0.03]
[1740703946729,18.64964886,136.79,136.71,7.3146]
[1740703946925,6.86,136.8,136.74,20.0]
[1740703947144,81.2,136.81,136.74,20.0]
[1740703947442,81.2,136.81,136.75,7.3126]
[1740703948123,81.2,136.81,136.74,1.5936]
[1740703948124,18.64964886,136.8,136.74,1.5936]
[1740703948328,18.64964886,136.8,136.72,7.314]
[1740703950216,81.2,136.81,136.72,25.5995]
[1740703950817,81.2,136.81,136.72,176.21899207]
[1740703951041,81.2,136.81,136.75,20.0]
[1740703951539,24.70504886,136.82,136.76,7.312]
[1740703954144,18.64964886,136.82,136.76,7.312]
[1740703954944,81.2,136.83,136.77,1.6561]
[1740703955246,18.64964886,136.86,136.77,15.77559207]
[1740703955628,0.063,136.82,136.77,15.77559207]
[1740703956934,0.063,136.82,136.78,25.5885]
[1740703958344,0.063,136.82,136.78,39.70799207]
[1740703959049,0.063,136.82,136.78,176.20799207]
[1740703960235,0.063,136.82,136.81,20.0]
[1740703960942,0.063,136.82,136.78,176.20799207]
[1740703964166,0.063,136.82,136.78,157.93049207]
[1740703965666,0.063,136.82,136.78,21.43049207]
[1740703965871,0.063,136.82,136.78,39.70799207]
[1740703969373,0.063,136.82,136.78,21.43049207]
[1740703971071,0.063,136.82,136.78,7.311]
[1740703971370,0.063,136.82,136.77,7.3113]
[1740703973254,0.063,136.82,136.77,25.5901]
[1740703975480,0.063,136.82,136.77,7.3113]
[1740703976479,0.063,136.82,136.75,25.5939]
[1740703976654,0.063,136.82,136.75,7.3126]
[1740703976972,18.64964886,136.81,136.75,7.3126]
[1740703979373,18.64964886,136.81,136.75,7.3426]
[1740703980491,81.263,136.82,136.75,25.6241]
[1740703980692,0.063,136.82,136.75,200.19359207]
[1740703981280,0.063,136.82,136.76,25.48477521]
[1740703982369,0.063,136.82,136.75,212.80659207]
[1740703982669,0.063,136.82,136.75,176.24359207]
[1740703986478,0.063,136.82,136.75,200.19359207]
[1740703987070,0.063,136.82,136.76,6.68]
[1740703988373,18.64964886,136.81,136.76,21.43139207]
[1740703988600,18.64964886,136.81,136.76,14.11949207]
[1740703989820,6.4401,136.82,136.76,21.43129207]
[1740703990511,6.4401,136.82,136.76,39.71139207]
[1740703990716,6.4401,136.82,136.76,46.41139207]
[1740703992423,99.99181043,136.81,136.75,0.03]
[1740703993920,3.6549,136.8,136.75,0.03]
[1740703994116,99.84964886,136.79,136.75,0.03]
[1740703994410,0.14216157,136.78,136.75,0.03]
[1740703994581,6.4057,136.77,136.75,0.03]
[1740703998505,87.6057,136.77,136.75,0.03]
[1740704000692,81.2,136.77,136.75,0.03]
[1740704004323,81.2,136.8,136.75,0.03]
[1740704004522,6.2807,136.81,136.75,0.03]
[1740704004901,0.063,136.82,136.75,39.74359207]
[1740704005305,0.063,136.82,136.75,43.27844217]
[1740704005899,0.063,136.82,136.78,20.0]
[1740704006127,0.063,136.82,136.78,20.83949207]
[1740704007025,0.063,136.82,136.79,25.5865]
[1740704007732,0.063,136.82,136.79,7.3104]
[1740704011141,0.063,136.82,136.76,150.61949207]
[1740704011348,6.5946,136.82,136.76,7.3119]
[1740704012450,6.5946,136.82,136.75,7.3426]
[1740704013946,6.5946,136.82,136.75,25.6241]
[1740704015419,0.063,136.82,136.75,25.6241]
[1740704016419,0.063,136.82,136.75,39.74359207]
[1740704017252,0.063,136.82,136.75,21.46209207]
[1740704018735,18.71264886,136.82,136.75,21.46209207]
[1740704019749,0.063,136.82,136.75,21.46209207]
[1740704020449,0.063,136.82,136.75,39.74359207]
[1740704021547,0.063,136.82,136.75,43.27854107]
[1740704021849,0.063,136.82,136.76,2.0]
[1740704023225,0.063,136.82,136.76,3.53463044]
[1740704023721,0.063,136.82,136.77,25.5903]
[1740704023944,0.063,136.82,136.78,6.68]
[1740704024140,0.063,136.82,136.78,20.79949207]
[1740704024839,0.063,136.82,136.79,25.5865]
[1740704025845,0.063,136.82,136.79,39.70599207]
[1740704026635,98.84603942,136.9,136.8,1.5398]
[1740704026851,98.84603942,136.9,136.8,152.15929207]
[1740704027648,87.5091,136.9,136.8,152.15929207]
[1740704028842,87.5091,136.9,136.81,25.5829]
[1740704029832,87.5091,136.9,136.81,39.70239207]
[1740704031150,18.79181043,136.89,136.81,21.42889207]
[1740704031359,99.99181043,136.89,136.81,7.3094]
[1740704031539,0.14216157,136.87,136.8,7.3097]
[1740704031743,6.1261,136.84,136.78,7.311]
[1740704031944,18.64964886,136.83,136.76,7.312]
[1740704032135,18.64964886,136.83,136.75,21.46189207]
[1740704032338,18.64964886,136.81,136.75,0.03]
[1740704032539,99.84964886,136.81,136.75,0.03]
[1740704032949,3.6549,136.8,136.75,0.03]
[1740704033256,84.8549,136.8,136.75,0.03]
[1740704033551,81.2,136.8,136.75,0.03]
[1740704034061,6.2684,136.79,136.75,0.03]
[1740704037152,87.4684,136.79,136.75,0.03]
[1740704039147,99.99181043,136.78,136.75,0.03]
[1740704039458,1.5017,136.77,136.75,0.03]
[1740704041540,18.79181043,136.76,136.75,0.03]
[1740704042267,82.7017,136.77,136.75,0.03]
[1740704044452,81.2,136.77,136.75,0.03]
[1740704044657,6.2684,136.79,136.75,0.03]
[1740704044859,82.7448,136.81,136.75,0.03]
[1740704046067,6.3547,136.82,136.75,15.65049207]
[1740704046245,0.063,136.82,136.75,15.65049207]
[1740704046442,0.063,136.82,136.76,25.5921]
[1740704046876,0.063,136.82,136.76,39.71159207]
[1740704048254,0.063,136.82,136.76,77.80662632]
[1740704048454,0.063,136.82,136.79,20.0]
[1740704048653,0.063,136.82,136.79,34.11949207]
[1740704048856,0.063,136.82,136.79,14.11949207]
[1740704049264,0.063,136.82,136.78,6.66]
[1740704049461,0.063,136.82,136.76,157.93149207]
[1740704049667,0.063,136.82,136.76,21.43149207]
[1740704050378,0.063,136.82,136.76,39.71159207]
[1740704051378,0.063,136.82,136.76,176.21159207]
[1740704051585,0.063,136.82,136.79,20.0]
[1740704052658,0.063,136.82,136.76,176.21159207]
[1740704052860,0.063,136.82,136.76,157.93149207]
[1740704055781,0.063,136.82,136.76,176.21159207]
[1740704056073,0.063,136.82,136.77,1.53473996]
[1740704056278,0.063,136.82,136.79,20.0]
[1740704056456,0.063,136.82,136.79,157.27949207]
[1740704057270,0.063,136.82,136.8,7.3099]
[1740704058482,0.063,136.82,136.8,29.3299]
[1740704058690,0.063,136.82,136.8,7.3099]
[1740704059367,0.063,136.82,136.79,21.42969207]
[1740704059695,0.063,136.82,136.76,14.11949207]
[1740704060566,0.063,136.82,136.77,7.3113]
[1740704061489,0.063,136.82,136.77,25.5901]
[1740704061865,0.063,136.82,136.77,177.74431808]
[1740704062181,0.063,136.82,136.77,176.20959207]
[1740704062966,0.063,136.82,136.77,214.76729207]
[1740704063171,0.063,136.82,136.77,216.76729207]
[1740704063686,0.063,136.82,136.77,528.76729207]
[1740704065387,0.063,136.82,136.77,216.76729207]
[1740704066384,0.063,136.82,136.77,220.46537176]
[1740704068185,0.063,136.82,136.77,532.46537176]
[1740704068585,0.063,136.82,136.78,22.02]
[1740704068792,0.063,136.82,136.79,25.5865]
[1740704069092,0.063,136.82,136.8,6.66]
[1740704071673,0.063,136.82,136.81,7.3094]
[1740704072974,0.063,136.82,136.78,7.311]
[1740704073576,0.063,136.82,136.78,7.341]
[1740704075183,0.063,136.82,136.78,25.6185]
[1740704078678,0.063,136.82,136.78,176.23799207]
[1740704082109,0.063,136.82,136.81,20.0]
[1740704083177,0.063,136.82,136.79,7.3104]
[1740704084001,0.063,136.82,136.78,157.96019207]
[1740704084604,0.063,136.82,136.78,21.46019207]
[1740704086410,0.063,136.82,136.81,0.03]
[1740704094811,6.5975,136.82,136.81,0.03]
[1740704095706,10.2519,136.82,136.81,0.03]
[1740704096007,6.5975,136.82,136.81,0.03]
[1740704096388,0.14216157,136.71,136.69,1.97e-05]
[1740704096596,18.79181043,136.69,136.61,14.11949207]
[1740704096804,18.79181043,136.69,136.58,13.05299751]
[1740704097004,18.79181043,136.69,136.58,1.6156]
[1740704097412,7.3584814,136.68,136.58,1.6156]
[1740704097589,3.7003814,136.68,136.58,15.73509207]
[1740704097797,0.14216157,136.66,136.57,11.43739751]
[1740704097985,5.93659014,136.69,136.58,7.3216]
[1740704098188,0.14216157,136.68,136.59,6.78]
[1740704098409,0.14216157,136.68,136.64,2.3617452]
[1740704101533,20.0,136.66,136.64,2.3617452]
[1740704102994,81.2,136.67,136.64,2.3617452]
[1740704106711,6.01200534,136.69,136.64,2.3617452]
[1740704107104,10.1845,136.7,136.64,2.3617452]
[1740704107607,16.1642506,136.7,136.64,2.3617452]
[1740704110193,9.6374506,136.7,136.64,2.3617452]
[1740704111914,5.9797506,136.7,136.65,1.5046]
[1740704112127,3.6576,136.7,136.65,1.5046]
[1740704112431,3.6574,136.71,136.65,1.5046]
[1740704112623,18.64964886,136.71,136.65,1.5046]
[1740704112927,84.94464469,136.75,136.65,220.1046]
[1740704113621,84.94464469,136.75,136.65,222.4363452]
[1740704114096,81.2,136.75,136.66,7.3174]
[1740704115609,81.2,136.75,136.66,25.6109]
[1740704116248,1.39757754,136.82,136.7,21.66786157]
[1740704116523,0.063,136.82,136.74,20.0]
[1740704116725,0.063,136.82,136.74,102.1]
[1740704117537,0.063,136.82,136.75,7.3126]
[1740704119136,22.50931043,136.82,136.75,7.3126]
[1740704120231,81.2,136.81,136.75,7.3126]
[1740704121137,99.99181043,136.8,136.71,82.1]
[1740704121317,81.2,136.79,136.72,7.3142]
[1740704122424,99.99181043,136.78,136.71,7.3145]
[1740704122626,0.14216157,136.76,136.71,7.3145]
[1740704122820,81.2,136.75,136.71,7.3145]
[1740704123213,18.64964886,136.74,136.7,1.5257]
[1740704123413,18.64964886,136.74,136.7,8.8408]
[1740704124232,81.2,136.75,136.7,8.8408]
[1740704131649,81.2,136.75,136.7,27.129]
[1740704132238,3.62321906,136.77,136.7,27.129]
[1740704136141,81.2,136.79,136.7,27.129]
[1740704136342,81.2,136.79,136.7,109.229]
[1740704138352,84.8125114,136.79,136.7,109.229]
[1740704138847,6.74,136.8,136.71,6.74]
[1740704139231,6.74,136.8,136.72,6.1492]
[1740704139748,0.063,136.81,136.74,1.5537]
[1740704139949,0.063,136.81,136.74,83.6537]
[1740704141755,0.063,136.81,136.75,25.5941]
[1740704143858,0.063,136.81,136.75,25.7537139]
[1740704144054,0.063,136.81,136.75,107.8537139]
[1740704145135,0.063,136.81,136.75,89.5722139]
[1740704147961,0.063,136.81,136.75,107.8537139]
[1740704149362,0.063,136.81,136.75,89.5722139]
[1740704159973,0.063,136.81,136.75,107.8537139]
[1740704160978,0.063,136.81,136.79,20.0]
[1740704161165,0.063,136.81,136.76,151.2609]
[1740704161477,0.063,136.81,136.76,233.3609]
[1740704161980,0.063,136.81,136.77,25.5903]
[1740704164376,0.063,136.81,136.76,1.6475]
[1740704165564,0.063,136.81,136.76,8.9594]
[1740704167855,0.063,136.81,136.76,83.7475]
[1740704168852,0.063,136.81,136.76,91.0593]
[1740704173385,0.063,136.81,136.76,82.1]
[1740704173586,18.85481043,136.81,136.75,0.1596139]
[1740704174204,18.85481043,136.81,136.75,7.4721139]
[1740704175184,22.50951043,136.81,136.75,7.4721139]
[1740704175790,18.71264886,136.81,136.75,7.4721139]
[1740704176674,0.063,136.81,136.75,25.7536139]
[1740704176871,0.063,136.81,136.75,107.8536139]
[1740704180902,0.063,136.81,136.75,89.5721139]
[1740704181108,18.85481043,136.81,136.75,89.5721139]
[1740704181674,87.2849,136.8,136.75,0.1596139]
[1740704182003,0.14216157,136.78,136.75,0.1596139]
[1740704182175,81.2,136.77,136.75,0.1596139]
[1740704184274,18.64964886,136.76,136.75,0.1596139]
[1740704184473,81.2,136.77,136.75,0.1596139]
[1740704186275,81.2,136.77,136.75,7.4721139]
[1740704186474,81.2,136.77,136.75,0.1596139]
[1740704191499,107.12070395,136.79,136.75,0.1596139]
[1740704192602,81.2,136.79,136.75,0.1596139]
[1740704192899,81.2,136.79,136.75,7.4721139]
[1740704193600,11.39993942,136.81,136.75,9.0588139]
[1740704193996,11.39993942,136.81,136.75,91.1588139]
[1740704194507,0.063,136.81,136.75,91.1588139]
[1740704194683,0.063,136.81,136.75,109.4403139]
[1740704200801,0.063,136.81,136.75,91.1588139]
[1740704201484,0.063,136.81,136.75,83.8463139]
[1740704201883,100.05481043,136.81,136.75,1.7463139]
[1740704202208,100.05481043,136.81,136.75,0.1596139]
[1740704203009,0.14216157,136.79,136.75,0.1596139]
[1740704203384,84.8555,136.78,136.75,0.1596139]
[1740704203583,18.64964886,136.76,136.75,0.1596139]
[1740704207001,18.64964886,136.76,136.72,1.5468]
[1740704207209,99.84964886,136.76,136.72,1.5468]
[1740704209409,81.2,136.75,136.69,8.4343313]
[1740704209708,81.2,136.75,136.69,9.4875313]
[1740704209904,18.64964886,136.74,136.69,9.4875313]
[1740704210114,99.84964886,136.74,136.69,9.4875313]
[1740704210309,103.50634886,136.74,136.69,2.1721313]
[1740704210512,103.50634886,136.74,136.69,9.4878313]
[1740704211800,99.84964886,136.74,136.69,9.4878313]
[1740704212415,103.50614886,136.74,136.69,9.4878313]
[1740704212911,103.52646909,136.74,136.69,9.4878313]
[1740704213696,81.2,136.74,136.69,9.4878313]
[1740704214827,3.6564,136.75,136.69,9.4878313]
[1740704215211,18.64964886,136.74,136.69,2.1721313]
[1740704216114,18.64964886,136.74,136.69,9.4877313]
[1740704216918,22.30624886,136.74,136.69,9.4877313]
[1740704217711,18.64964886,136.74,136.69,9.4877313]
[1740704218227,99.84964886,136.74,136.69,9.4877313]
[1740704219017,103.50624886,136.74,136.69,9.4877313]
[1740704219327,103.50624886,136.74,136.69,2.1721313]
[1740704220512,103.50624886,136.74,136.69,2.2021313]
[1740704222712,103.50624886,136.74,136.69,9.5178313]
[1740704223104,107.19885388,136.74,136.69,9.5178313]
[1740704223720,81.2,136.74,136.69,9.5178313]
[1740704226126,81.2,136.74,136.69,27.8073313]
[1740704230230,3.719,136.76,136.69,109.9073313]
[1740704231225,0.063,136.76,136.7,1.5232]
[1740704231417,0.063,136.76,136.74,20.0]
[1740704231621,0.063,136.76,136.74,102.1]
[1740704231808,0.063,136.79,136.75,1.5232]
[1740704232133,0.063,136.79,136.76,6.6]
[1740704232636,0.063,136.79,136.76,88.7]
[1740704233929,0.063,136.79,136.77,7.3115]
[1740704235807,0.063,136.79,136.77,89.4115]
[1740704236717,0.063,136.79,136.77,95.9329]
[1740704237715,0.063,136.79,136.77,232.4329]
[1740704237915,0.063,136.79,136.77,236.05036429]
[1740704239442,0.0001,136.79,136.77,236.05036429]
[1740704239737,0.0001,136.81,136.8,21.80406157]
[1740704240030,0.0001,136.81,136.8,241.93825129]
[1740704240338,0.0001,136.81,136.8,240.40406157]
[1740704240640,0.0001,136.81,136.8,103.7619]
[1740704241525,0.0001,136.81,136.8,111.0718]
[1740704243618,0.0001,136.81,136.79,7.3102]
[1740704245544,0.0001,136.81,136.77,100.3788]
[1740704245747,0.0001,136.81,136.78,7.311]
[1740704247351,0.0001,136.81,136.8,27.3099]
[1740704247552,0.0001,136.81,136.8,109.4099]
[1740704248058,0.0001,136.81,136.8,82.1]
[1740704251059,0.0001,136.81,136.78,7.3108]
[1740704251654,0.0001,136.81,136.76,83.7531]
[1740704251863,0.0001,136.81,136.77,7.3115]
[1740704254360,18.64964886,136.8,136.75,0.03]
[1740704255866,18.64964886,136.8,136.75,7.3425]
[1740704256267,22.30464886,136.8,136.75,0.03]
[1740704257452,22.36764886,136.8,136.75,0.03]
[1740704259076,6.1511,136.78,136.75,0.03]
[1740704259386,18.64964886,136.77,136.75,0.03]
[1740704260387,22.30544886,136.77,136.75,0.03]
[1740704261569,9.8066,136.78,136.75,0.03]
[1740704266282,22.30554886,136.77,136.75,0.03]
[1740704267376,103.50554886,136.77,136.75,0.03]
[1740704267570,0.14216157,136.76,136.75,0.03]
[1740704268269,3.79816157,136.76,136.75,0.03]
[1740704269088,18.64964886,136.75,136.69,220.8021313]
[1740704269389,18.64964886,136.75,136.69,91.6178313]
[1740704273502,18.64964886,136.73,136.69,2.2021313]
[1740704274501,18.64964886,136.73,136.69,9.5178313]
[1740704277113,81.2,136.74,136.69,9.5178313]
[1740704277694,6.6,136.75,136.69,9.5178313]
[1740704278008,25.24964886,136.75,136.69,9.5178313]
[1740704282617,28.90594886,136.75,136.69,9.5178313]
[1740704282925,18.79181043,136.74,136.69,2.2021313]
[1740704283098,0.14216157,136.74,136.69,9.5179313]
[1740704283297,3.79866157,136.74,136.69,9.5179313]
[1740704283610,18.64964886,136.73,136.69,9.5179313]
[1740704284204,18.64964886,136.73,136.69,2.2021313]
[1740704284406,18.64964886,136.73,136.69,9.5178313]
[1740704284915,18.64964886,136.73,136.69,2.2021313]
[1740704286624,81.2,136.74,136.69,9.5178313]
[1740704289502,25.24964886,136.75,136.69,9.5178313]
[1740704289718,6.6,136.75,136.69,27.8073313]
[1740704291423,6.6,136.75,136.69,9.5178313]
[1740704291913,84.8558,136.77,136.69,9.5178313]
[1740704292423,0.063,136.75,136.69,9.5178313]
[1740704293724,0.063,136.75,136.7,7.7099]
[1740704294404,0.063,136.75,136.73,20.0]
[1740704295314,0.063,136.75,136.74,1.5087]
[1740704295507,0.063,136.75,136.74,90.9218]
[1740704300025,0.063,136.79,136.78,20.0]
[1740704300219,0.063,136.79,136.78,220.2055]
[1740704300627,0.063,136.79,136.78,227.5165]
[1740704301832,0.063,136.79,136.78,231.89524992]
[1740704303404,0.063,136.79,136.78,227.5165]
[1740704304338,0.063,136.79,136.78,91.0165]
[1740704309531,0.063,136.8,136.78,91.0165]
[1740704310433,0.063,136.8,136.78,227.5165]
[1740704315041,0.063,136.8,136.78,91.0165]
[1740704316143,0.063,136.8,136.78,7.341]
[1740704316646,0.063,136.8,136.78,0.03]